Cogmind - Beta 14 @@@ ROGUE MODE // 2024.08.24 @ 00:07:29 Player: Epsilon 11 Result: Destroyed by D-53 Grenadier with Mini Grenade Launcher Performance ------------- Evolutions (1) 500 Regions Visited (4) 800 Robots Destroyed (27) 135 Value Destroyed (736) 736 Prototype IDs (4) 80 Alien Tech Used (0) 0 Bonus (33) 33 TOTAL SCORE: 2284 Bonus ------- Follower Combat Kills 33 Cogmind --------- Core Integrity 0/400 Matter 265/300 Energy 246/250 System Corruption 1% Temperature Cool (2) Movement Treading (160) Location -9/Recycling Parts ------- > --- POWER (1) -------- Ion Engine > --- PROPULSION (2) --- Light Treads Light Treads > --- UTILITY (4) ------ Disposable Heat Sink Medium Storage Unit Improved Terrain Scanner Drone Bay (1/2) > --- WEAPON (2) ------- Small Laser > --- INVENTORY (10) --- Light Ion Engine Grenade Launcher Datajack Flail Peak State ------------ > --- POWER ------------ Ion Engine > --- PROPULSION ------- Light Treads Light Treads > --- UTILITY ---------- Disposable Heat Sink Medium Storage Unit Improved Terrain Scanner Drone Bay > --- WEAPON ----------- Small Laser > --- INVENTORY -------- Light Ion Engine Grenade Launcher Rocket Launcher Datajack Flail [Rating: 15] Favorites ----------- Power Light Ion Engine Engine Light Ion Engine Propulsion Aluminum Leg Treads Light Treads Leg Aluminum Leg Utility Small Storage Unit Device Structural Scanner Storage Small Storage Unit Protection Hardened Light Armor Plating Weapon Small Laser Energy Gun Small Laser Launcher Grenade Launcher Impact Weapon Flail Special Melee Weapon Datajack Build | -11 -10 -9 -9 -9 ------- Run | Yrd Mat Mat Sto Rec Slots Evolved 2 | . . 2 . . Power . | . . . . . Propulsion . | . . . . . Utility 2 | . . 2 . . Weapon . | . . . . . Parts Attached 42 | 6 8 7 10 11 Power 7 | 1 2 2 . 2 Engine 7 | 1 2 2 . 2 Core . | . . . . . Reactor . | . . . . . Propulsion 9 | 2 . 2 3 2 Treads 3 | . . . 1 2 Leg 6 | 2 . 2 2 . Wheel . | . . . . . Hover . | . . . . . Flight . | . . . . . Utility 11 | 1 1 2 3 4 Device 7 | . 1 2 1 3 Storage 2 | 1 . . . 1 Processor . | . . . . . Hackware . | . . . . . Protection 2 | . . . 2 . Artifact . | . . . . . Weapon 15 | 2 5 1 4 3 Energy Gun 9 | 2 3 1 2 1 Energy Cannon . | . . . . . Ballistic Gun . | . . . . . Ballistic Cannon . | . . . . . Launcher 4 | . 2 . 1 1 Special Weapon . | . . . . . Impact Weapon 1 | . . . 1 . Slashing Weapon . | . . . . . Piercing Weapon . | . . . . . Special Melee Weapon 1 | . . . . 1 Unidentified Prototypes . | . . . . . Parts Lost 14 | . . 2 11 1 Power 1 | . . . 1 . Propulsion 4 | . . 1 3 . Utility 5 | . . 1 4 . Weapon 4 | . . . 3 1 Highest Loss Streak 8 | . . 2 8 1 To Critical Strikes . | . . . . . Average Slot Usage (%) 80 | . 92 88 74 66 Engine 11 | . 14 11 9 10 Treads 4 | . . . 2 13 Leg 15 | . 28 21 14 . Device 14 | . 7 23 15 16 Storage 11 | . 14 11 10 8 Energy Gun 18 | . 26 22 16 10 Impact Weapon 1 | . . . 1 2 Special Melee Weapon 1 | . . . . 3 Peak Build Rating 15 | 6 7 9 11 15 Average Rating 8 | 4 6 8 8 10 On Entrance 4 | . 6 7 9 2 Naked Turns . | . . . . . Heaviest Build 24 | 11 13 17 19 24 Greatest Support 40 | 20 20 20 20 40 Greatest Overweight (x) 1 | . . 1 1 1 Average Overweight (x) . | . . . . . Largest Inventory Capacity 10 | 8 8 8 8 10 Average Capacity 8 | 6 8 8 7 8 Most Carried 6 | 1 2 4 6 6 Average Carried 3 | . 1 2 4 4 Final Capacity 10 | 8 8 8 5 10 Final Carried 4 | 1 1 4 3 4 Class Distribution -------------------- 65% | Mutant 31% | Scavenger-Mutant 3% | Commander-Mutant Dominant Class ---------------- Mutant | -10/Materials Scavenger-Mutant | -9/Materials Mutant | -9/Storage Scavenger-Mutant | -9/Recycling Resources | -11 -10 -9 -9 -9 ----------- Run | Yrd Mat Mat Sto Rec Matter Collected 623 | 218 102 150 83 70 Remotely . | . . . . . Salvage Created 922 | . 295 193 207 227 Parts 46 | . 24 8 8 6 Haulers Intercepted . | . . . . . Recyclers Shooed . | . . . . . Parts Field Recycled . | . . . . . Retrieved Matter . | . . . . . Parts Self-Destructed . | . . . . . Prevented . | . . . . . Kills | -11 -10 -9 -9 -9 ------- Run | Yrd Mat Mat Sto Rec Combat Hostiles Destroyed 22 | . 10 4 7 1 Melee 1 | . . . . 1 Guns 10 | . 3 4 3 . AOE 10 | . 7 . 3 . Classes Destroyed 6 | . 4 1 1 . Worker 1 | . . . 1 . Builder 3 | . 3 . . . Watcher 1 | . 1 . . . Swarmer 6 | . 3 . 3 . Grunt 12 | . 7 2 2 1 Sentry 4 | . . 2 2 . Best Kill Streak 7 | . 7 2 6 1 Combat Bots Only 5 | . 5 2 5 1 Max Kills in Single Turn 3 | . 3 1 3 1 Gunslinging . | . . . . . Exploded 3 | . 3 . 2 . Melee 1 | . . . . 1 Uniques/NPCs Destroyed . | . . . . . Combat | -11 -10 -9 -9 -9 -------- Run | Yrd Mat Mat Sto Rec Hostile Shots Fired 146 | . 33 14 95 4 Missed 31 | . 12 3 16 . Damage Taken 1880 | . 259 235 1181 205 Core 466 | . 64 25 254 123 Absorbed by Shields . | . . . . . Core Remaining (%) 87 | 100 74 . . . Volleys Fired 75 | . 26 10 17 22 Largest 2 | . 2 2 2 1 Hottest 90 | . 90 90 90 40 Shots Fired 120 | . 49 20 30 21 Gun 112 | . 43 20 28 21 Cannon . | . . . . . Launcher 8 | . 6 . 2 . Special . | . . . . . Kinetic . | . . . . . Thermal 112 | . 43 20 28 21 Explosive 8 | . 6 . 2 . Electromagnetic . | . . . . . Robot Hit Streak 15 | . 10 14 13 15 Robot Miss Streak 5 | . 5 2 2 1 Penetration Max . | . . . . . Secondary Targets 1 | . . . 1 . Max Gunslinging Chain 1 | . . . 1 . Shots Hit Robots 111 | . 28 17 29 37 Core Hits 48 | . 22 8 11 7 Critical Kills . | . . . . . Critical Parts Destroyed 2 | . . . 1 1 Critical Strikes 3 | . 1 . 1 1 Burn 1 | . 1 . . . Smash 2 | . . . 1 1 Melee Attacks 28 | . . . 9 19 Impact 11 | . . . 9 2 Slashing . | . . . . . Piercing . | . . . . . Sneak Attacks 18 | . . . . 18 Combat Hostiles 8 | . . . . 8 Follow-up Attacks . | . . . . . Damage Inflicted 2086 | . 844 291 628 323 Guns 967 | . 322 206 230 209 Cannons . | . . . . . Explosions 791 | . 522 85 184 . Melee 328 | . . . 214 114 Ramming . | . . . . . Kinetic . | . . . . . Thermal 967 | . 322 206 230 209 Explosive 791 | . 522 85 184 . Electromagnetic . | . . . . . Impact 328 | . . . 214 114 Slashing . | . . . . . Piercing . | . . . . . Highest Corruption 1 | . . . 1 1 Average Corruption 1 | . . . 1 1 Corruption Purged . | . . . . . Corruption Blocked . | . . . . . Effects 6 | . . . 2 4 Message Errors 2 | . . . . 2 Matter Fused 1 | . . . 1 . Parts Rejected 1 | . . . 1 . Data Loss (minor) 1 | . . . . 1 Weapon Failures 1 | . . . . 1 Overload Shots . | . . . . . Overflow Damage 144 | . . 26 48 70 Projectiles . | . . . . . Explosions 36 | . . 26 10 . Melee 108 | . . . 38 70 Knockbacks . | . . . . . Impact . | . . . . . Kinetic . | . . . . . Secondary . | . . . . . Self-Inflicted Damage 102 | . . 85 17 . Shots 2 | . . 1 1 . Rammed . | . . . . . Targets Rammed . | . . . . . Kicked . | . . . . . Crushed . | . . . . . Highest Temperature 359 | . 235 81 359 . Average Temperature 97 | . 73 32 149 . Received Heat Transfer 681 | . 147 99 435 . Effects 1 | . . . 1 . Energy Bleed 1 | . . . 1 . Siege Activations . | . . . . . Robots Corrupted 1 | . . . 1 . Combat Hostiles 1 | . . . 1 . Parts Fried 1 | . . . 1 . Impact Corruptions 5 | . . . 2 3 Robots Melted . | . . . . . Combat Hostiles . | . . . . . Parts Melted 5 | . 2 3 . . Heat Transferred 2485 | . 917 533 560 475 Parts Sabotaged . | . . . . . Parts Stolen . | . . . . . Parts Stripped . | . . . . . Power Chain Reactions . | . . . . . Alert | -11 -10 -9 -9 -9 ------- Run | Yrd Mat Mat Sto Rec Peak Influence 369 | . 369 356 294 337 Initial 155 | . . 155 150 106 Average 185 | . 124 246 218 214 Maximum Alert Level 1 | . 1 1 1 1 Low Security (%) 53 | 100 73 20 40 54 Level 1 46 | . 26 79 59 45 Level 2 . | . . . . . Level 3 . | . . . . . Level 4 . | . . . . . Level 5 . | . . . . . High Security . | . . . . . Max Security . | . . . . . Squads Dispatched 5 | . 2 2 1 . Investigation 1 | . 1 . . . Extermination . | . . . . . Reinforcement 4 | . 1 2 1 . Assault . | . . . . . Garrison . | . . . . . Intercept . | . . . . . Searches Triggered . | . . . . . Construction Impeded . | . . . . . Haulers Reinforced . | . . . . . Active Scanning Responses . | . . . . . Cargo Convoy Interrupts . | . . . . . Stealth | -11 -10 -9 -9 -9 --------- Run | Yrd Mat Mat Sto Rec Distress Signals 3 | . 2 . 1 . Communications Jammed . | . . . . . Distress Signals . | . . . . . Times Spotted 35 | . 14 6 11 4 Peak Tracking Total 7 | . 7 2 5 2 Tactical Retreats 1 | . . . 1 . Traps | -11 -10 -9 -9 -9 ------- Run | Yrd Mat Mat Sto Rec Traps Triggered 1 | . . . 1 . Indirectly . | . . . . . Trap Hack Attempts . | . . . . . Triggered . | . . . . . Disarmed . | . . . . . Reprogrammed . | . . . . . Reused . | . . . . . Traps Extracted . | . . . . . Installed . | . . . . . Triggered . | . . . . . Machines | -11 -10 -9 -9 -9 ---------- Run | Yrd Mat Mat Sto Rec Machines Disabled 3 | . 1 1 1 . Max in Single Turn 1 | . 1 1 1 . Machines Repaired . | . . . . . Machines Dismantled . | . . . . . Machines Sabotaged . | . . . . . Overloaded Fab Kills . | . . . . . Hacking | -11 -10 -9 -9 -9 --------- Run | Yrd Mat Mat Sto Rec Machines Accessed 18 | . 4 3 5 6 Terminals 14 | . 4 3 5 2 Fabricators . | . . . . . Repair Stations . | . . . . . Recycling Units 4 | . . . . 4 Scanalyzers . | . . . . . Garrison Access . | . . . . . Total Hacks 53 | . 15 12 14 12 Successful 32 | . 8 7 7 10 Failed 21 | . 7 5 7 2 Catastrophic 3 | . 1 . 2 . Database Lockouts . | . . . . . Manual 29 | . 8 11 4 6 Terminals 48 | . 15 12 14 7 Fabricators . | . . . . . Repair Stations . | . . . . . Recycling Units 5 | . . . . 5 Scanalyzers . | . . . . . Garrison Access . | . . . . . Terminal Hacks 16 | . 4 4 5 3 Part Schematic 2 | . . 1 1 . Robot Analysis 1 | . 1 . . . Prototype ID Bank 2 | . . 1 . 1 Open Door 1 | . . . 1 . Emergency Access Points 2 | . 1 . . 1 Terminal Index 1 | . . 1 . . Alert Level 2 | . . . 1 1 Maintenance Status 3 | . 1 1 1 . Zone Layout 2 | . 1 . 1 . Fabricator Hacks . | . . . . . Repair Station Hacks . | . . . . . Recycling Unit Hacks 1 | . . . . 1 Report Inventory 1 | . . . . 1 Scanalyzer . | . . . . . Garrison Access Hacks . | . . . . . Unauthorized Hacks 15 | . 4 3 2 6 Terminals 11 | . 4 3 2 2 Assimilate 1 | . 1 . . . Botnet 9 | . 3 2 2 2 Operators 1 | . . 1 . . Fabricators . | . . . . . Repair Stations . | . . . . . Recycling Units 4 | . . . . 4 Tunnel 4 | . . . . 4 Scanalyzers . | . . . . . Garrison Access . | . . . . . Data Cores Recovered . | . . . . . Used . | . . . . . Hacking Detections 13 | . 4 3 4 2 Full Trace Events 1 | . 1 . . . Feedback Events . | . . . . . Feedback Blocked . | . . . . . Robot Schematics Acquired . | . . . . . Robots Built . | . . . . . Authchips . | . . . . . Time . | . . . . . Total Robot Build Rating . | . . . . . Part Schematics Acquired 2 | . . 1 1 . Parts Built . | . . . . . Authchips . | . . . . . Time . | . . . . . Total Part Build Rating . | . . . . . Parts Repaired . | . . . . . Time . | . . . . . Parts Recycled . | . . . . . Recycled Matter . | . . . . . Retrieved Matter . | . . . . . Retrieved Components . | . . . . . Parts Scanalyzed . | . . . . . Part Schematics Acquired . | . . . . . Parts Damaged . | . . . . . Bothacking | -11 -10 -9 -9 -9 ------------ Run | Yrd Mat Mat Sto Rec Used RIF Installer . | . . . . . Robots Hacked . | . . . . . Non-combat . | . . . . . Combat . | . . . . . Robot Hacks Applied . | . . . . . Relay Couplers Released . | . . . . . Fabnet Peak Effective % . | . . . . . Robots Rewired 6 | . . . . 6 Allies Hacked . | . . . . . Hacks Repelled . | . . . . . Allies | -11 -10 -9 -9 -9 -------- Run | Yrd Mat Mat Sto Rec Total Allies 6 | . . . . 6 Largest Group 6 | . . . . 6 Highest-Rated Group 75 | . . . . 75 Highest-Rated Ally 34 | . . . . 34 Total Orders 2 | . . . . 2 COLLECT 1 | . . . . 1 EXPLORE 1 | . . . . 1 Ally Attacks 12 | . . . . 12 Total Damage 289 | . . . . 289 Kills 3 | . . . . 3 Allies Corrupted . | . . . . . Allies Melted . | . . . . . Intel | -11 -10 -9 -9 -9 ------- Run | Yrd Mat Mat Sto Rec Robot Analysis Total 1 | . 1 . . . Derelict Logs Recovered . | . . . . . Drone Launches 1 | . . . . 1 Drone Recoveries . | . . . . . Exploration | -11 -10 -9 -9 -9 ------------- Run | Yrd Mat Mat Sto Rec Turns Passed 1230 | 47 369 209 239 366 Spaces Moved 708 | 37 214 129 140 188 Core 72 | 9 . . 35 28 Treads 162 | . . . 2 160 Legs 474 | 28 214 129 103 . Wheels . | . . . . . Hover . | . . . . . Flight . | . . . . . Fastest Speed 50 | 50 120 120 50 50 Average Speed 124 | 102 120 122 109 146 Slowest Speed 190 | 120 120 190 190 160 Overloaded Moves . | . . . . . Propulsion Burnouts . | . . . . . Robots Hopped . | . . . . . Cave-ins Triggered . | . . . . . Exploration Rate (%) 32 | 4 54 19 33 52 Regions Visited 4 Branch Regions 2 Pre-discovered Areas 4 | . . . . 4 Known Exits Taken . | . . . . . Unknown Exits Taken 4 | 1 1 1 1 . Scrap Searched . | . . . . . Spaces Dug . | . . . . . Terrain Destroyed 53 | . 29 20 4 . Melee . | . . . . . Projectile . | . . . . . AOE 53 | . 29 20 4 . Terrain Rammed . | . . . . . Walls Destroyed . | . . . . . Machines Disabled . | . . . . . Actions | -11 -10 -9 -9 -9 --------- Run | Yrd Mat Mat Sto Rec Total 898 | 43 274 159 179 243 Wait 32 | . 24 7 1 . Move 704 | 36 213 128 139 188 Hop . | . . . . . Pick Up 10 | 1 1 4 2 2 Fast Attach 17 | 6 1 2 2 6 Attach 9 | . . 2 4 3 Detach 1 | . . . . 1 Swap 16 | . 7 3 4 2 Drop 6 | . 2 3 1 . Fire 75 | . 26 10 17 22 Melee 28 | . . . 9 19 Ram . | . . . . . Kick . | . . . . . Crush . | . . . . . Escape Stasis . | . . . . . Rewire . | . . . . . Trap . | . . . . . Miscellaneous . | . . . . . Route ------- -11/Scrapyard -10/Materials (discovered 2 exits: *Mat / [*Min]) -9/Materials -9/Storage -9/Recycling History --------- Turn | Location | Event 6 | -11/Scrapyard | Discovered new exit (range 15) 48 | -11/Scrapyard | Entered Materials 238 | -10/Materials | Discovered new exit (range 12) 315 | -10/Materials | Build established: Mutant 399 | -10/Materials | Discovered new exit (range 16) 417 | -10/Materials | Entered another Materials area 417 | -9/Materials | Evolved 2 slots: Utility x2 601 | -9/Materials | Discovered new exit (range 9) 626 | -9/Materials | Entered Storage 836 | -9/Storage | Core integrity fell below 50% 863 | -9/Storage | Used back door to open Recycling access 863 | -9/Storage | Discovered new exit (range 5) 865 | -9/Storage | Entered Recycling 890 | -9/Recycling | Lost 8 parts (1p2n3u2w) 1072 | -9/Recycling | Lost 3 allies 1226 | -9/Recycling | Core integrity fell below 20% 1231 | -9/Recycling | Destroyed by D-53 Grenadier with Mini Grenade Launcher Last Messages --------------- >>Prototypes Downloading prototype IDs... Imp. VTOL Module Imp. Flight Unit >>Access(Emergency) Found 2 emergency access doors: (42,54) (42,56) Map updated. 01203_ Connecting with Terminal... >>Trojan(Botnet) Trojan loaded successfully. Testing... Terminal linked with 1 system. Awaiting botnet instructions. 01205_ System corrupted: Component data lost. 01225_ R-06 Scavenger destroyed. 01227_ Rocket Launcher destroyed. 01227_ Grenadier 2a destroyed. 01227_ Electrolysis Chamber disabled. Map ----- +----------------------------------------------------+ | #???# ####+#######?? | | #???# ##* *# ##????????????? | | ########+############# ## **# #?????????????? | | ??????# ## ###### #?????????????? | | ??????# ##/##+####?# #?????????????? | | ??????# # #?# #?????????????? | | ?????######+##### # "" #?# #?????????????? | | ?????#! ! #?# / "Y ### #?????????????? | | ####?#! #?# # "" #?# #?????????????? | | !% #?# ## # #?? #?????????????? | | %#?# ! ! ### # """ #?? #?????????????? | | #?#! #?# # """ #?? ??????????????? | | #?# #?# # """ #???????????????????? | | !%#?# ! !!!#?##### #???????????????????? | | [ =#?# #?????##+#"T"###???????????????????? | | % ]#?# ! #??#??## #"""#?????????????????????? | | | #?##########????###+######??#????#????????????? | | [ #???????????????# #?#??????????????????? | | #???????????????# "T" #???? ???????????????? | | #??????????"????# #????????????????????? | | % #???????????????# #?#??????????????????? | | #???????????????# #???? ???????????????? | | ##/#???????????????# """ ##???????????????????? | | ?? ???????????????# "" #???????????????????? | | ?? ##??????????????# b #???? ??????????????? | | ?? #???????????????#r @ ##??? ##????????????? | | ???#?????????##+##### # #????????????? | | ??????????# r d #????????????? | | ??????????# #????????????? | | ?????????? #????????????? | | ???????????#+######### # #????????????? | | ?????????????????????# ###?#####????????????? | | ?????????????????????## = #????????????????????? | | ??????????????????????# #????????????????????? | | ?????????????????????## | #????????????????????? | | ??????????????????????#! |#????????????????????? | | ??????????????????????#[ #????????????????????? | | ??????????????????????#! h !#????????????????????? | | ??????????????????????#% #????????????????????? | | ??????????????????????#[ #????????????????????? | | ??????????????????????# #????????????????????? | | ??????????????????????#!! #????????????????????? | | ??????????????????????# ! #????????????????????? | | ???????????????????????% *#????????????????????? | | ?????????????????????????????????????????????????? | | ?????????????????????????????????????????????????? | | ?????????????????????????????????????????????????? | | ?????????????????????????????????????????????????? | | ?????????????????????????????????????????????????? | | ?????????????????????????????????????????????????? | +----------------------------------------------------+ Best States ------------- Heat Dissipation 48 Coolant Potential 50 Energy Generation 12 Energy Capacity 265 Matter Stores 300 Matter Capacity 300 Sight Range 16 Terrain Scan Range 16 Terrain Scan Density 10 Armor Coverage 300 Evasion (%) 55 Recoil Reduction 2 Item Schematics ----------------- Plasma Cutter | -9/Materials | Hacked Cryofiber Web | -9/Storage | Hacked Robot Schematics ------------------ None Fabricated ------------ Nothing Alien Tech Used ----------------- None Achievements -------------- None Challenges ------------ None Game ------ Seed ReinforcedMultinovaInjector Manual? 0 Play Time 00:29:25 Cumulative 121.2 hours Start 2024.08.23 @ 23:37:40 End 2024.08.24 @ 00:07:29 Sessions 1 Manual Loads 0 Difficulty Rogue Special Mode None Game No. 55 Rogue 12 Adventurer 43 Explorer 0 Win Type - Total 3 Types 2/0/0/0/0/0/0/1/0 Lore% 49 Gallery% 60 Achievement% 53 Wizard Run 0 Options --------- Layout 0 ASCII 0 Keyboard 0 Movement Mouse Keybinds 0 Fullscreen 1 Font 24/Smallcaps Map View 76x50 Zoom Use 0% Tactical HUD 1 Map Filters NONE Filters NONE Steam 1 RUN: c23e8eb0-8328-49cb-805b-e1003f1a4abd